bitfinex/quotes_ETHUSD_20250815
["timestamp","ask_amount","ask_price","bid_price","bid_amount"]
[1755275149192,5.46,4398.4,4398.1,0.1136]
[1755275149398,3.91,4398.3,4397.4,2.27407104]
[1755275149598,6.3322,4398.3,4398.2,0.1136]
[1755275149994,8.60580571,4398.3,4398.2,0.1136]
[1755275150208,6.3322,4398.3,4398.2,0.1136]
[1755275150431,9.05600571,4398.3,4396.7,3.4414]
[1755275150736,2.27382547,4397.9,4397.7,0.1136]
[1755275150905,6.1798642,4397.8,4397.7,0.1136]
[1755275151232,9.6022642,4397.8,4397.7,0.1136]
[1755275151732,9.6022642,4397.8,4396.6,0.1136]
[1755275151733,2.27442764,4396.8,4396.6,0.1136]
[1755275152055,0.1136,4396.7,4396.3,0.001]
[1755275152346,3.905,4396.6,4396.5,0.1136]
[1755275152545,3.905,4396.6,4396.3,0.001]
[1755275152705,3.0,4397.6,4396.3,0.001]
[1755275152706,2.4222,4397.7,4396.3,0.001]
[1755275152908,2.4222,4397.7,4396.8,0.1136]
[1755275152909,2.27417601,4397.2,4396.8,0.1136]
[1755275153119,3.906,4397.1,4396.8,0.1136]
[1755275153332,6.18029171,4397.0,4396.8,0.1136]
[1755275153534,6.3282,4397.0,4396.8,0.1136]
[1755275153847,2.27370732,4398.2,4396.9,0.1136]
[1755275153848,2.4222,4397.9,4396.9,0.1136]
[1755275154069,3.906,4397.8,4397.5,0.1136]
[1755275154347,3.906,4397.7,4397.6,2.27396761]
[1755275154558,0.1136,4398.3,4397.8,2.27384386]
[1755275154747,3.906,4398.2,4397.8,2.27383095]
[1755275154937,3.906,4398.2,4397.9,2.27380821]
[1755275155134,3.906,4398.2,4398.0,0.1136]
[1755275155360,3.906,4398.1,4398.0,2.3873608]
[1755275155514,3.906,4398.1,4397.2,0.4414]
[1755275155710,5.63295754,4398.4,4398.0,0.1136]
[1755275155938,3.905,4398.3,4397.3,2.27412275]
[1755275156254,3.905,4398.2,4397.2,0.4414]
[1755275156414,3.905,4398.2,4398.1,2.2737091]
[1755275156613,5.63295754,4398.4,4398.1,0.1136]
[1755275156817,3.905,4398.3,4398.2,5.7150574]
[1755275157085,0.16960813,4399.2,4398.3,3.0]
[1755275157349,3.905,4399.0,4398.9,2.27329559]
[1755275157914,3.905,4399.0,4398.9,0.1136]
[1755275158254,6.3272,4399.0,4398.9,0.1136]
[1755275158454,3.905,4399.0,4398.9,0.1136]
[1755275158621,0.002,4399.2,4398.9,0.1136]
[1755275159226,3.905,4399.1,4398.9,0.1136]
[1755275160234,0.002,4399.0,4398.9,2.38689056]
[1755275160562,0.002,4399.0,4398.8,2.27331365]
[1755275160761,0.002,4399.0,4398.9,0.1136]
[1755275160978,0.002,4399.2,4398.9,3.4414]
[1755275161133,0.002,4399.7,4399.2,12.251717]
[1755275161134,1e-08,4399.7,4399.2,12.251717]
[1755275161341,1e-08,4399.7,4399.6,2.2729339]
[1755275161869,1e-08,4399.7,4399.6,5.7143339]
[1755275162096,1e-08,4399.7,4399.6,6.8599339]
[1755275162379,1e-08,4399.7,4399.6,7.4099339]
[1755275162559,1e-08,4399.7,4399.6,17.2301879]
[1755275162761,1e-08,4399.7,4399.6,20.5820889]
[1755275162961,1e-08,4399.7,4399.6,7.4099339]
[1755275163141,1e-08,4399.7,4399.6,12.4404639]
[1755275163337,0.4502,4402.2,4399.8,0.55]
[1755275163338,3.904,4402.2,4399.8,0.55]
[1755275163565,3.904,4402.2,4400.7,3.0]
[1755275163733,3.904,4402.2,4401.0,2.27221086]
[1755275163933,3.904,4402.2,4401.1,3.0]
[1755275164632,3.904,4402.2,4402.1,2.27164307]
[1755275165485,3.904,4402.2,4401.2,0.4414]
[1755275165637,3.904,4402.2,4402.1,2.27164307]
[1755275166755,3.904,4402.2,4401.8,2.2717979]
[1755275167074,3.904,4402.2,4401.9,2.27174629]
[1755275167274,3.904,4402.2,4402.1,2.27164307]
[1755275167890,3.904,4402.2,4401.3,3.0]
[1755275168054,3.904,4402.2,4402.1,2.27164307]
[1755275168446,0.002,4402.8,4402.7,2.27133349]
[1755275168671,0.002,4402.8,4402.1,0.4485]
[1755275168840,0.002,4402.8,4402.7,2.27133349]
[1755275169559,0.002,4402.8,4401.3,3.0]
[1755275169560,2.8793,4402.8,4401.3,3.0]
[1755275169764,0.002,4402.8,4402.7,2.27133349]
[1755275169991,0.002,4402.8,4401.7,3.0]
[1755275170192,0.002,4402.8,4402.5,2.27139676]
[1755275170486,0.002,4402.8,4401.4,3.4485]
[1755275170698,2.4148,4402.8,4401.5,3.0]
[1755275170923,2.4148,4402.8,4402.7,0.1136]
[1755275171405,6.3158,4402.8,4402.7,0.1136]
[1755275171566,6.3158,4402.8,4402.5,2.27142957]
[1755275171567,0.002,4402.8,4402.6,2.27137926]
[1755275171889,0.002,4402.8,4402.7,2.38493349]
[1755275172788,0.002,4402.8,4402.7,2.83343349]
[1755275173490,0.002,4402.8,4402.7,5.83343349]
[1755275174578,1e-08,4403.3,4403.2,2.27107558]
[1755275174978,1e-08,4403.3,4403.2,5.71957558]
[1755275175384,1e-08,4403.7,4403.6,2.27086928]
[1755275175770,1e-08,4403.7,4403.6,24.62316628]
[1755275175988,1e-08,4403.7,4403.6,25.76876628]
[1755275176188,1e-08,4403.7,4403.6,22.11488228]
[1755275177305,1e-08,4403.7,4403.6,27.56988228]
[1755275177678,1e-08,4403.7,4403.6,23.66988228]
[1755275178002,1e-08,4403.7,4403.6,27.56888228]
[1755275178203,1e-08,4403.7,4403.6,18.17486328]
[1755275178507,1e-08,4403.7,4403.6,20.92826328]
[1755275178689,1e-08,4403.7,4403.6,22.07386328]
[1755275179471,1e-08,4403.7,4403.6,11.72436928]
[1755275179805,1e-08,4403.7,4403.6,14.89815228]
[1755275180003,1e-08,4403.7,4403.6,5.71936928]
[1755275180214,1e-08,4403.7,4403.6,9.16886928]
[1755275180372,1e-08,4403.7,4403.6,10.16736928]
[1755275180573,1e-08,4403.7,4403.6,16.48789628]
[1755275181003,1e-08,4403.7,4403.6,17.63349628]
[1755275181373,1e-08,4405.1,4405.0,2.27014755]
[1755275181567,1e-08,4405.1,4405.0,5.27014755]
[1755275181771,2.87730001,4405.1,4405.0,5.27014755]
[1755275182074,2.41280001,4405.1,4405.0,5.27014755]
[1755275182269,1e-08,4405.1,4405.0,5.27014755]
[1755275182781,2.41280001,4405.1,4405.0,5.27014755]
[1755275183011,2.87730001,4405.1,4405.0,5.27014755]
[1755275183214,2.87730001,4405.1,4404.2,2.27052042]
[1755275183430,0.4645,4405.0,4404.8,2.27022942]
[1755275183570,0.4645,4405.0,4403.0,0.4485]
[1755275183924,2.4128,4404.9,4403.1,4.19674027]
[1755275184081,1e-08,4405.1,4403.1,4.19674027]
[1755275184082,1e-08,4405.1,4405.0,2.27014755]
[1755275186077,1e-08,4405.1,4405.0,5.83224755]
[1755275186274,1e-08,4405.1,4405.0,19.19993555]
[1755275186814,1e-08,4405.1,4405.0,10.60772455]
[1755275187021,1e-08,4405.1,4405.0,9.27974755]
[1755275187174,1e-08,4405.1,4405.0,5.38374755]
[1755275188322,1e-08,4405.1,4405.0,9.27874755]
[1755275188533,1e-08,4405.1,4405.0,19.33376955]
[1755275188692,1e-08,4405.1,4405.0,21.73281555]
[1755275189018,1e-08,4405.1,4405.0,22.28281555]
[1755275189516,1e-08,4405.1,4405.0,23.42841555]
[1755275189676,1e-08,4405.1,4405.0,18.38781555]
[1755275189878,1e-08,4405.1,4405.0,10.27724755]
[1755275190100,1e-08,4405.1,4405.0,8.57260555]
[1755275190309,1e-08,4405.1,4405.0,21.27918055]
[1755275190519,1e-08,4405.1,4405.0,20.47460155]
[1755275190812,1e-08,4405.1,4405.0,10.27724755]
[1755275191014,1e-08,4405.1,4405.0,12.44091755]
[1755275191230,1e-08,4405.1,4405.0,12.55451755]
[1755275191735,1e-08,4405.1,4405.0,10.27624755]
[1755275192035,1e-08,4405.6,4405.5,2.26988991]
[1755275192196,1e-08,4405.6,4405.5,9.16388991]
[1755275192397,2.41280001,4405.6,4405.5,9.27748991]
[1755275192598,1e-08,4405.6,4405.5,11.40600191]
[1755275192828,1e-08,4405.6,4405.5,11.29240191]
[1755275193034,1e-08,4405.6,4405.5,12.24874891]
[1755275193636,1e-08,4405.6,4405.5,9.16388991]
[1755275193936,2.41280001,4405.6,4405.5,5.26988991]
[1755275194108,2.41280001,4405.6,4405.5,9.16288991]
[1755275194722,2.87730001,4405.6,4405.5,5.26988991]
[1755275195035,2.87730001,4405.6,4405.5,2.26988991]
[1755275195424,2.87730001,4405.6,4403.2,2.2710751]
[1755275195627,2.87730001,4405.6,4404.6,2.27031418]
[1755275195628,2.26994143,4405.4,4404.6,2.27031418]
[1755275195797,0.4645,4405.5,4405.4,2.26994143]
[1755275196136,2.41280001,4405.6,4405.5,2.26988991]
[1755275196137,1e-08,4405.6,4405.5,2.26988991]
[1755275197233,1e-08,4405.6,4405.5,22.5629798]
[1755275197430,1e-08,4405.6,4405.5,22.54028091]
[1755275197617,1e-08,4405.6,4405.5,15.67115691]
[1755275198154,1e-08,4405.6,4405.5,7.42186791]
[1755275198456,1e-08,4405.6,4405.5,5.26988991]
[1755275198605,1e-08,4405.6,4405.5,8.34693991]
[1755275199019,1e-08,4405.6,4405.5,11.48293391]
[1755275199514,1e-08,4405.6,4405.5,11.65759391]
[1755275199916,1e-08,4405.6,4405.5,9.16188991]
[1755275200242,1e-08,4405.6,4405.5,11.60510291]
[1755275200540,1e-08,4405.6,4405.5,9.16188991]
[1755275200944,2.34630001,4405.6,4405.5,9.16088991]
[1755275201247,1e-08,4405.6,4405.5,15.20211691]
[1755275201446,1e-08,4405.6,4405.5,13.01848991]
[1755275201745,2.34630001,4405.6,4405.5,9.16088991]
[1755275202119,1e-08,4405.6,4405.5,9.16088991]
[1755275202311,2.34630001,4405.6,4405.5,5.26988991]
[1755275202512,2.34630001,4405.6,4405.5,9.16088991]
[1755275202708,2.81070001,4405.6,4405.5,2.38348991]
[1755275203213,2.34630001,4405.6,4405.5,2.38348991]
[1755275203955,2.81070001,4405.6,4405.5,2.38348991]
[1755275204248,2.81070001,4405.6,4405.5,0.1136]
[1755275204546,3.28856165,4405.6,4405.5,0.1136]
[1755275205323,9.44840003,4405.6,4405.5,0.1136]
[1755275205522,2.26989963,4405.5,4405.1,0.1136]
[1755275205751,0.47786164,4405.4,4405.1,0.1136]
[1755275205963,0.47786164,4405.3,4405.1,0.1136]
[1755275206250,0.47786164,4405.2,4405.1,0.1136]
[1755275206478,0.94226164,4405.2,4404.6,2.27034854]
[1755275206759,2.26995393,4405.4,4404.6,2.27034854]
[1755275206760,3.28856164,4405.1,4404.9,0.1136]
[1755275206940,0.47786164,4405.0,4404.9,0.1136]
[1755275207124,3.28856164,4405.0,4404.9,0.1136]
[1755275207764,3.28856164,4405.0,4404.5,2.27035584]
[1755275207945,2.8107,4404.9,4404.1,0.001]
[1755275208119,2.8107,4404.9,4404.2,2.27055657]
[1755275208313,0.4644,4404.8,4404.1,0.001]
[1755275208750,2.3463,4404.7,4404.2,2.27055992]
[1755275208958,2.3463,4404.7,4404.1,0.001]
[1755275208959,0.4644,4404.6,4404.5,0.001]
[1755275209167,0.4644,4404.6,4404.5,2.27140526]
[1755275209168,2.8107,4404.6,4404.5,2.27140526]
[1755275209460,1e-08,4405.6,4404.5,0.001]
[1755275209753,2.3463,4404.6,4404.5,0.001]
[1755275209922,2.8107,4404.6,4404.1,0.001]
[1755275210263,3.889,4405.0,4404.8,2.27021078]
[1755275210428,3.889,4405.0,4404.7,2.27028988]
[1755275210617,2.8107,4404.9,4404.6,2.27033897]
[1755275210819,2.8107,4404.9,4404.1,0.001]
[1755275211013,2.26984594,4405.6,4404.1,0.001]
[1755275211014,0.4644,4405.5,4404.1,0.001]
[1755275211256,1e-08,4405.6,4405.5,2.26988991]
[1755275211742,2.34630001,4405.6,4405.5,2.26988991]
[1755275211950,1e-08,4405.6,4405.5,2.26988991]
[1755275212130,1e-08,4405.6,4404.7,0.4325]
[1755275212131,6.69970001,4405.6,4404.1,0.001]
[1755275212457,6.6997,4405.5,4404.8,2.27021709]
[1755275212670,6.6997,4405.5,4404.5,2.27036607]
[1755275212962,5.08064331,4405.4,4404.6,2.27034603]
[1755275213160,2.8107,4405.4,4404.9,2.27019415]
[1755275213377,3.889,4405.3,4404.8,2.2702412]
[1755275213524,2.8107,4405.2,4404.5,2.27039539]
[1755275213717,2.8107,4405.2,4404.1,0.001]
[1755275214155,2.8107,4405.2,4404.8,2.27024397]
[1755275214333,3.888,4405.1,4405.0,2.27014755]
[1755275215432,1e-08,4405.6,4405.5,2.26988991]
[1755275217269,1e-08,4405.6,4405.5,5.70238991]
[1755275217925,1e-08,4405.6,4405.5,5.75915882]
[1755275218727,1e-08,4405.6,4405.5,5.32665882]
[1755275219465,1e-08,4405.6,4405.5,14.97249382]
[1755275219669,1e-08,4405.6,4405.5,15.85979582]
[1755275220053,1e-08,4405.6,4405.5,14.88710582]
[1755275220260,1e-08,4405.6,4405.5,5.32665882]
[1755275220463,1e-08,4405.6,4405.5,5.21305882]
[1755275220643,1e-08,4405.6,4405.5,5.64555882]
[1755275220969,1e-08,4405.6,4405.5,11.57452382]
[1755275221205,1e-08,4405.6,4405.5,12.12452382]
[1755275221480,1e-08,4406.5,4406.4,2.26942628]
[1755275221680,1e-08,4406.5,4406.4,14.04910628]
[1755275221853,1e-08,4406.5,4406.4,23.51865528]
[1755275222255,1e-08,4406.5,4406.4,21.24997728]
[1755275224091,1e-08,4408.8,4408.7,2.26824233]
[1755275225090,1e-08,4408.8,4408.7,27.68496175]
[1755275225246,1e-08,4408.8,4408.7,33.91716133]
[1755275225570,1e-08,4408.8,4408.7,32.19503633]
[1755275226242,6.59374888,4413.8,4409.5,0.55]
[1755275226447,2.6894,4412.5,4409.8,0.55]
[1755275226682,2.6894,4412.5,4409.6,23.40669869]
[1755275226683,2.26645101,4412.2,4409.9,3.884]
[1755275226996,15.75199117,4411.8,4407.2,2.03547427]
[1755275227147,3.55,4411.6,4407.7,2.26875694]
[1755275227348,0.55,4411.4,4409.8,2.26764505]
[1755275227647,0.002,4410.2,4409.3,2.26790497]
[1755275227880,6.5724,4410.1,4408.2,2.26849961]
[1755275228082,6.5714,4410.1,4409.6,2.26774503]
[1755275228283,0.002,4410.2,4408.2,3.0]
[1755275228284,2.6894,4410.0,4408.2,3.0]
[1755275228592,2.6894,4410.0,4408.4,3.0]
[1755275228794,0.002,4409.7,4409.6,2.26777939]
[1755275229960,2.2539,4409.7,4409.6,2.26777939]
[1755275230352,2.6914,4409.7,4409.6,2.38137939]
[1755275230561,0.002,4409.7,4409.6,2.38137939]
[1755275231698,1e-08,4409.7,4409.6,2.38137939]
[1755275231903,2.25190001,4409.7,4409.6,2.38137939]
[1755275232201,2.68940001,4409.7,4409.6,0.1136]
[1755275233454,2.68940001,4409.7,4409.6,2.26777939]
[1755275233650,2.68940001,4409.7,4409.6,2.38137939]
[1755275233969,2.68940001,4409.7,4409.6,0.1136]
[1755275234307,2.68940001,4409.7,4409.3,2.267922]
[1755275234452,1e-08,4409.7,4409.6,2.26777939]
[1755275234654,1e-08,4409.7,4409.6,2.71537939]
[1755275234888,2.1825839,4411.1,4411.0,2.26705962]
[1755275235053,3.879,4411.8,4410.2,5.26747086]
[1755275235250,3.879,4411.8,4410.2,3.0]
[1755275235488,0.4375,4412.1,4411.7,2.26665318]
[1755275235784,0.02028528,4412.7,4411.9,2.26657495]
[1755275235971,0.4375,4412.5,4412.0,2.26654573]
[1755275236188,4.1285,4412.6,4410.8,3.0]
[1755275236387,0.4375,4412.4,4411.8,2.26661585]
[1755275236597,0.4375,4412.4,4410.7,3.0]
[1755275236598,0.4375,4412.4,4411.7,2.26665364]
[1755275236983,2.2519,4412.3,4411.7,2.26665364]
[1755275237191,2.2519,4412.3,4410.7,5.2671641]
[1755275237419,2.26677344,4411.6,4409.5,3.0]
[1755275237721,6.5674,4411.5,4409.6,3.0]
[1755275237869,2.6894,4411.5,4410.9,2.26710369]
[1755275238210,2.2519,4411.5,4411.1,2.26697277]
[1755275238376,2.6894,4411.4,4410.0,2.26757369]
[1755275238577,2.6894,4411.4,4410.1,2.26752227]
[1755275238777,2.6894,4411.4,4410.6,2.2672174]
[1755275239011,2.6894,4411.4,4410.7,2.26720566]
[1755275239220,2.6894,4411.4,4410.8,2.2671485]
[1755275239419,2.6894,4411.4,4410.7,3.0]
[1755275239598,2.6894,4411.4,4410.7,2.26720969]
[1755275239771,2.6894,4411.4,4408.9,2.26813944]
[1755275239772,2.26716178,4410.9,4408.9,2.26813944]
[1755275239970,2.26716178,4410.9,4408.8,0.4476]
[1755275239971,6.5664,4410.8,4408.8,4.3246]
[1755275240220,2.2519,4410.7,4410.0,2.26752626]
[1755275240414,2.2519,4410.7,4409.9,2.26762511]
[1755275240711,2.2519,4410.7,4408.9,2.26813944]
[1755275241019,2.2519,4411.7,4409.7,2.26772796]
[1755275241170,2.2519,4411.7,4410.2,2.26747086]
[1755275241368,2.2519,4411.7,4410.5,2.26731663]
[1755275241907,2.2519,4411.7,4411.6,2.26675129]
[1755275242269,2.5014,4412.6,4411.6,3.0]
[1755275242483,2.5014,4412.6,4412.4,2.26630218]
[1755275242794,2.6894,4412.5,4410.9,0.4476]
[1755275243208,2.6894,4412.5,4412.1,2.26649236]
[1755275243511,2.6894,4412.5,4411.0,5.26705962]
[1755275243512,2.2519,4412.4,4411.0,2.26705962]
[1755275243717,2.6894,4412.4,4412.0,2.26654517]
[1755275243921,2.6894,4412.3,4411.9,2.26658457]
[1755275244107,4.1255,4412.6,4412.5,2.26628895]
[1755275244626,6.3774,4412.6,4412.5,0.1136]
[1755275244784,9.08113759,4412.6,4412.5,0.1136]
[1755275244983,6.8149,4412.6,4412.5,0.1136]
[1755275245189,2.9389,4412.6,4412.5,0.1136]
[1755275245385,6.8139,4412.6,4412.5,0.1136]
[1755275246024,6.3764,4412.6,4412.5,0.1136]
[1755275246247,6.8139,4412.6,4412.5,0.1136]
[1755275246537,0.55,4412.5,4410.0,0.4476]
[1755275246834,0.55,4412.5,4408.3,2.26841227]
[1755275246835,2.26673374,4411.7,4409.2,0.4476]
[1755275247036,6.14178651,4411.6,4411.5,0.1136]
[1755275247195,8.83118651,4411.6,4411.5,0.1136]
[1755275247595,8.83118651,4411.6,4409.4,2.26788225]
[1755275247596,6.5644,4411.6,4409.4,2.26788225]
[1755275247791,2.2519,4411.5,4411.2,0.1136]
[1755275247996,2.26690544,4411.3,4411.2,0.1136]
[1755275248535,2.26690544,4411.3,4410.7,0.1136]
[1755275248536,2.26701196,4411.1,4410.7,0.1136]
[1755275248723,2.26701196,4411.1,4408.4,3.874]
[1755275248724,2.26729325,4410.6,4408.7,2.26824233]
[1755275248920,2.6894,4410.5,4410.3,0.1136]
[1755275249120,3.874,4410.9,4410.3,0.1136]
[1755275249433,2.26725571,4410.7,4410.6,0.1136]
[1755275249636,0.1136,4411.2,4410.6,0.1136]
[1755275249793,3.874,4411.1,4410.6,0.1136]
[1755275249992,7.6959,4411.6,4411.1,0.1136]
[1755275250192,6.5634,4411.5,4411.1,0.1136]
[1755275250532,2.26691993,4411.3,4411.1,0.1136]
[1755275250736,4.95625608,4411.4,4411.1,0.1136]
[1755275250910,2.26685608,4411.4,4411.1,0.1136]
[1755275251242,2.2519,4411.2,4411.1,0.1136]
[1755275251441,6.1249,4411.2,4411.1,2.38060822]
[1755275251642,2.2519,4411.2,4411.1,0.1136]
[1755275251842,8.82935683,4411.2,4410.9,0.1136]
[1755275252145,2.26706765,4411.0,4410.1,2.26747284]
[1755275252306,2.26710423,4411.0,4410.2,2.2674664]
[1755275252507,2.6894,4410.9,4408.7,0.4476]
[1755275252735,2.6894,4410.9,4406.4,2.03547427]
[1755275252736,1.02944837,4410.8,4410.7,0.1136]
[1755275252936,2.26738472,4410.4,4409.9,0.1136]
[1755275253257,2.26735352,4410.5,4409.9,0.1136]
[1755275253476,2.2519,4410.3,4409.9,0.1136]
[1755275253616,3.873,4410.2,4409.9,0.1136]
[1755275253820,6.1249,4410.2,4409.9,0.1136]
[1755275254017,2.2519,4410.1,4409.9,0.1136]
[1755275254573,3.873,4410.2,4409.9,0.1136]
[1755275254862,3.872,4410.1,4409.9,2.38122003]
[1755275255065,6.1249,4410.0,4409.9,0.1136]
[1755275255621,6.1249,4410.0,4408.6,3.0]
[1755275255622,3.16925128,4410.0,4409.3,2.26793171]
[1755275255852,3.873,4409.9,4409.3,2.26793171]
[1755275256064,3.873,4409.9,4409.2,2.26793886]
[1755275256223,2.2519,4410.0,4408.2,3.0]
[1755275256431,2.2519,4410.0,4409.3,2.26791169]
[1755275256432,3.872,4409.9,4409.3,2.26791169]
[1755275256625,2.4109,4409.8,4408.1,3.0]
[1755275256842,2.4109,4409.8,4409.4,2.26786155]
[1755275257026,2.8774,4409.7,4409.0,2.26803886]
[1755275257228,2.8774,4409.7,4408.2,2.26849961]
[1755275257442,2.8774,4409.7,4408.4,3.0]
[1755275257763,2.4109,4409.7,4408.5,2.26834524]
[1755275257963,2.4109,4409.7,4409.2,2.26793641]
[1755275258460,3.872,4409.6,4408.6,0.4528]
[1755275258661,6.2829,4409.6,4409.1,2.26802329]
[1755275258960,2.8774,4409.5,4409.0,2.26808706]
[1755275259124,0.11327973,4410.3,4408.8,0.0226819]
[1755275259327,3.872,4410.2,4408.8,0.4528]
[1755275259551,6.13948129,4410.2,4408.8,3.4528]
[1755275259752,2.4109,4410.1,4409.4,2.26787374]
[1755275259954,4.67843308,4410.1,4409.3,2.267922]
[1755275260262,2.4109,4410.1,4409.3,2.26792647]
[1755275260465,2.4109,4410.1,4409.4,2.26786723]
[1755275260466,4.67844011,4410.1,4409.4,2.26786723]
[1755275260632,2.4109,4410.1,4409.4,2.26786723]
[1755275260828,3.872,4410.0,4408.5,0.001]
[1755275261033,3.872,4410.0,4409.6,2.26773913]
[1755275261233,3.872,4410.0,4409.7,2.26770308]
[1755275261840,3.872,4410.0,4409.9,2.26762511]
[1755275262042,3.872,4410.0,4409.7,2.26767767]
[1755275262264,3.872,4410.0,4408.9,3.0]
[1755275262466,3.872,4410.0,4409.8,2.26767115]
[1755275262673,3.872,4410.0,4409.9,2.26762511]
[1755275263033,3.871,4410.0,4409.9,2.26761434]
[1755275263234,3.871,4410.0,4409.8,2.26766678]
[1755275263439,3.871,4410.0,4409.6,2.26777939]
[1755275263777,3.871,4410.0,4408.6,2.26829378]
[1755275263778,2.8774,4409.9,4408.6,2.26829378]
[1755275263933,2.8774,4409.9,4409.3,2.26790253]
[1755275264137,2.8774,4409.9,4409.2,2.26798065]
[1755275264367,2.8774,4409.9,4408.5,0.001]
[1755275264368,5.14502716,4409.9,4408.5,0.001]
[1755275264575,5.14502716,4409.9,4409.1,2.26800086]
[1755275264737,2.8774,4409.9,4409.2,2.26798167]
[1755275264939,2.8774,4409.9,4409.3,2.26792583]
[1755275265142,2.8774,4409.9,4409.2,2.26797089]
[1755275265343,2.26768343,4409.8,4409.1,2.26801783]
[1755275265544,5.14503884,4409.9,4409.5,0.1136]
[1755275265774,3.871,4410.0,4409.5,0.1136]
[1755275265775,2.4109,4409.8,4409.5,0.1136]
[1755275266766,6.13858036,4410.0,4409.5,0.1136]
[1755275266947,2.8774,4409.9,4409.5,0.1136]
[1755275267345,2.26777939,4409.6,4409.5,0.1136]
[1755275267573,0.55,4409.3,4408.7,0.1136]
[1755275267894,2.26788225,4409.4,4408.3,0.1136]
[1755275267895,0.1136,4409.0,4408.3,0.1136]
[1755275268067,2.81813959,4408.9,4408.3,0.1136]
[1755275268268,3.869,4408.8,4408.3,0.1136]
[1755275268591,2.26829378,4408.6,4408.3,0.1136]
[1755275268797,2.8774,4408.7,4408.3,0.1136]
[1755275268993,0.4665,4408.7,4408.3,0.1136]
[1755275269292,4.67919378,4408.6,4408.3,0.1136]
[1755275269592,4.67919378,4408.6,4408.1,0.1136]
[1755275269593,3.28479378,4408.6,4408.1,0.1136]
[1755275269758,5.80929378,4408.6,4407.9,0.001]
[1755275269957,6.29047366,4408.6,4407.9,0.001]
[1755275270168,5.80929378,4408.6,4407.9,0.001]
[1755275270803,3.541,4408.6,4407.9,0.001]
[1755275271003,7.41,4408.6,4408.0,2.26855565]
[1755275271205,0.1136,4408.6,4407.9,0.001]
[1755275271406,0.11258805,4409.0,4408.6,2.26827897]
[1755275271607,3.868,4408.9,4408.5,0.1146]
[1755275271792,3.868,4408.8,4408.5,0.1146]
[1755275271997,3.868,4408.7,4408.5,0.1146]
[1755275272491,3.868,4408.7,4408.5,0.001]
[1755275272492,5.25929378,4408.6,4408.5,0.001]
[1755275272680,4.79279378,4408.6,4408.5,0.001]
[1755275272879,2.5245,4408.6,4408.5,0.001]
[1755275273181,3.868,4408.6,4408.5,0.1146]
[1755275274221,3.368,4408.6,4408.5,0.1146]
[1755275274720,9.06369378,4408.6,4408.5,0.001]
[1755275276610,12.06369378,4408.6,4408.5,0.001]
[1755275277106,12.56269378,4408.6,4408.5,0.001]
[1755275277824,2.81860254,4408.0,4407.9,0.001]
[1755275277986,9.68560254,4408.0,4407.9,0.001]
[1755275278191,12.67660254,4408.0,4407.9,0.001]
[1755275279125,8.80960254,4408.0,4407.9,0.001]
[1755275279327,12.67560254,4408.0,4407.9,0.001]
[1755275279791,19.67560254,4408.0,4407.9,0.001]
[1755275280236,0.55,4407.6,4407.4,1e-08]
[1755275280537,0.55,4407.2,4407.1,1e-08]
[1755275280692,6.68501434,4407.2,4407.1,1e-08]
[1755275280900,13.15788205,4407.2,4407.1,1e-08]
[1755275281437,13.15813699,4407.2,4407.1,1e-08]
[1755275282792,13.15813699,4407.2,4405.0,0.1136]
[1755275282793,0.55,4407.0,4405.0,0.1136]
[1755275283016,3.0,4407.1,4404.6,0.1146]
[1755275283017,2.27014507,4405.1,4404.6,0.1146]
[1755275283235,0.55,4406.1,4404.7,2.0095]
[1755275283407,0.1136,4405.7,4405.0,0.1136]
[1755275283604,2.26992833,4405.5,4405.0,0.1136]
[1755275283934,2.27005643,4405.2,4404.7,0.4528]
[1755275284249,0.55,4405.9,4404.6,0.001]
[1755275284250,0.1136,4404.8,4404.6,0.001]
[1755275284391,3.865,4404.7,4404.6,0.001]
[1755275284596,6.13530217,4404.7,4404.6,0.001]
[1755275284908,10.68530217,4404.7,4404.6,0.001]
[1755275285420,3.865,4404.7,4404.6,0.001]
[1755275285728,6.24890217,4404.7,4404.6,0.001]
[1755275285935,2.38390217,4404.7,4404.6,0.001]
[1755275286117,6.24890217,4404.7,4404.6,0.001]
[1755275286698,6.24790217,4404.7,4404.6,0.001]
[1755275287531,6.79790217,4404.7,4404.6,0.001]
[1755275287696,2.93390217,4404.7,4404.6,0.001]
[1755275287897,6.79790217,4404.7,4404.6,0.001]
[1755275290023,0.1136,4404.7,4404.6,0.001]
[1755275290334,3.89812315,4405.5,4404.7,2.27026369]
[1755275290535,3.864,4405.4,4405.0,0.1136]
[1755275290901,3.89812315,4405.5,4404.6,2.3952]
[1755275291139,3.864,4405.4,4405.1,0.4706]
[1755275291306,3.864,4405.4,4405.2,2.8648]
[1755275291512,3.864,4405.4,4405.3,0.4706]
[1755275291709,2.4643,4405.3,4404.6,0.001]
[1755275292040,2.93390217,4404.7,4404.6,0.001]
[1755275292337,6.24690217,4404.7,4404.6,0.001]
[1755275294600,2.26994143,4405.4,4404.6,0.4716]
[1755275294801,3.863,4405.3,4404.6,0.4716]
[1755275295000,3.863,4405.3,4404.9,0.1136]
[1755275295313,3.863,4405.3,4405.0,0.4706]
[1755275295706,2.27008693,4405.2,4405.0,0.4706]
[1755275295923,3.862,4405.1,4405.0,0.4706]
[1755275297684,3.06695332,4406.2,4405.0,0.4706]
[1755275297685,0.1136,4406.0,4405.0,2.9784]
[1755275297825,0.47901857,4406.8,4405.1,3.4706]
[1755275298026,0.47901857,4406.8,4404.6,0.001]
[1755275298027,0.1136,4407.2,4406.6,0.1136]
[1755275298248,0.60465332,4407.7,4406.9,2.26912733]
[1755275298249,3.861,4407.1,4406.9,2.26912733]
[1755275298469,3.861,4407.1,4407.0,2.8648]
[1755275298675,3.861,4407.1,4407.0,5.24751731]
[1755275299027,3.861,4407.1,4407.0,0.5842]